Cogmind - Beta 14 @@@ ROGUE MODE // 2024.08.13 @ 21:54:07 Player: noob Result: Destroyed by 8R-AWN with 8R-AWN's Boregun Performance ------------- Evolutions (1) 500 Regions Visited (4) 800 Robots Destroyed (23) 115 Value Destroyed (549) 549 Prototype IDs (0) 0 Alien Tech Used (0) 0 Bonus (0) 0 TOTAL SCORE: 1964 Bonus ------- None Cogmind --------- Core Integrity 0/400 Matter 38/300 Energy 249/250 System Corruption 4% Temperature Cool (0) Movement Core (200) Ox3 Location -9/Exiles Parts ------- > --- POWER (1) -------- Ion Engine > --- PROPULSION (3) --- (None) > --- UTILITY (3) ------ Small Storage Unit > --- WEAPON (2) ------- (None) > --- INVENTORY (8) ---- (None) Peak State ------------ > --- POWER ------------ Ion Engine > --- PROPULSION ------- Aluminum Leg Aluminum Leg Flexi-carbon Leg > --- UTILITY ---------- Heat Sink Small Storage Unit > --- WEAPON ----------- Heavy Assault Rifle Improved Light Cannon > --- INVENTORY -------- Heavy Assault Rifle Improved Light Cannon [Rating: 14] Favorites ----------- Power Ion Engine Engine Ion Engine Propulsion Aluminum Leg Leg Aluminum Leg Utility Light Armor Plating Device Seismic Detector Storage Small Storage Unit Protection Light Armor Plating Weapon Heavy Assault Rifle Ballistic Gun Heavy Assault Rifle Ballistic Cannon Improved Light Cannon Launcher Grenade Launcher Build | -11 -10 -9 -9 -9 ------- Run | Yrd Mat Mat Min Exi Slots Evolved 2 | . . 2 . . Power . | . . . . . Propulsion 1 | . . 1 . . Utility 1 | . . 1 . . Weapon . | . . . . . Parts Attached 44 | 6 14 10 1 13 Power 2 | 1 . . . 1 Engine 2 | 1 . . . 1 Core . | . . . . . Reactor . | . . . . . Propulsion 10 | 2 3 3 . 2 Treads . | . . . . . Leg 10 | 2 3 3 . 2 Wheel . | . . . . . Hover . | . . . . . Flight . | . . . . . Utility 10 | 1 4 3 1 1 Device 6 | . 3 1 1 1 Storage 2 | 1 . 1 . . Processor . | . . . . . Hackware . | . . . . . Protection 2 | . 1 1 . . Artifact . | . . . . . Weapon 22 | 2 7 4 . 9 Energy Gun . | . . . . . Energy Cannon . | . . . . . Ballistic Gun 7 | 2 1 2 . 2 Ballistic Cannon 5 | . 2 . . 3 Launcher 10 | . 4 2 . 4 Special Weapon . | . . . . . Impact Weapon . | . . . . . Slashing Weapon . | . . . . . Piercing Weapon . | . . . . . Special Melee Weapon . | . . . . . Unidentified Prototypes . | . . . . . Parts Lost 17 | . 1 . 1 15 Power 1 | . . . . 1 Propulsion 5 | . . . . 5 Utility 5 | . 1 . 1 3 Weapon 6 | . . . . 6 Highest Loss Streak 13 | . 1 . 1 13 To Critical Strikes 10 | . . . . 10 Average Slot Usage (%) 92 | . 92 97 100 87 Engine 11 | . 14 11 11 10 Leg 29 | . 28 33 33 28 Device 9 | . 14 3 6 9 Storage 7 | . . 10 11 11 Protection 9 | . 5 16 15 7 Ballistic Gun 16 | . 13 18 22 18 Ballistic Cannon 1 | . 1 1 . 1 Launcher 5 | . 13 2 . . Peak Build Rating 14 | 6 9 12 12 14 Average Rating 9 | 4 6 11 11 10 On Entrance 7 | . 6 9 12 12 Naked Turns . | . . . . . Heaviest Build 22 | 12 17 22 22 20 Greatest Support 30 | 20 20 30 30 30 Greatest Overweight (x) 3 | 1 . . . 3 Average Overweight (x) . | . . . . . Largest Inventory Capacity 8 | 8 5 8 8 8 Average Capacity 7 | 7 5 7 8 8 Most Carried 8 | 6 5 8 8 8 Average Carried 5 | 4 4 7 7 6 Final Capacity 8 | 8 5 8 8 8 Final Carried 8 | 2 5 8 8 . Class Distribution -------------------- 100% | Mutant Dominant Class ---------------- Mutant | -10/Materials Mutant | -9/Materials Mutant | -9/Mines Mutant | -9/Exiles Resources | -11 -10 -9 -9 -9 ----------- Run | Yrd Mat Mat Min Exi Matter Collected 836 | 213 204 391 28 . Remotely . | . . . . . Salvage Created 468 | . 193 243 . 32 Parts 37 | . 24 13 . . Haulers Intercepted . | . . . . . Recyclers Shooed . | . . . . . Parts Field Recycled . | . . . . . Retrieved Matter . | . . . . . Parts Self-Destructed . | . . . . . Prevented . | . . . . . Kills | -11 -10 -9 -9 -9 ------- Run | Yrd Mat Mat Min Exi Combat Hostiles Destroyed 24 | . 11 6 . 7 Guns 5 | . . 5 . . Cannons 4 | . 1 . . 3 AOE 15 | . 10 1 . 4 Classes Destroyed 8 | . 5 1 . 2 Worker 2 | . 1 1 . . Mechanic 1 | . 1 . . . Watcher 2 | . 2 . . . Swarmer 6 | . 6 . . . Grunt 9 | . 5 4 . . Sentry 2 | . . 2 . . Zionite 1 | . . . . 1 Assembled 7 | . . . . 7 Best Kill Streak 8 | . 8 2 . 8 Combat Bots Only 7 | . 6 2 . 7 Max Kills in Single Turn 3 | . 2 1 . 3 Gunslinging . | . . . . . Exploded 3 | . 2 1 . 3 Melee . | . . . . . Uniques/NPCs Destroyed . | . . . . . Combat | -11 -10 -9 -9 -9 -------- Run | Yrd Mat Mat Min Exi Hostile Shots Fired 174 | . 27 36 7 104 Missed 45 | . 8 10 . 27 Damage Taken 2209 | . 261 350 223 1375 Core 454 | . 43 55 32 324 Absorbed by Shields . | . . . . . Core Remaining (%) 91 | 100 82 . . . Volleys Fired 76 | . 16 22 2 36 Largest 2 | . 2 2 2 2 Hottest 78 | . 78 53 46 78 Shots Fired 114 | . 18 45 4 47 Gun 77 | . 2 41 4 30 Cannon 15 | . 2 . . 13 Launcher 22 | . 14 4 . 4 Special . | . . . . . Kinetic 92 | . 4 41 4 43 Thermal . | . . . . . Explosive 22 | . 14 4 . 4 Electromagnetic . | . . . . . Robot Hit Streak 10 | . 2 10 1 3 Robot Miss Streak 5 | . 2 2 2 5 Penetration Max . | . . . . . Secondary Targets . | . . . . . Shots Hit Robots 61 | . 7 31 1 22 Core Hits 52 | . 23 14 . 15 Critical Kills . | . . . . . Critical Parts Destroyed . | . . . . . Critical Strikes . | . . . . . Melee Attacks . | . . . . . Impact . | . . . . . Slashing . | . . . . . Piercing . | . . . . . Sneak Attacks . | . . . . . Combat Hostiles . | . . . . . Follow-up Attacks . | . . . . . Damage Inflicted 2074 | . 931 503 13 627 Guns 641 | . 7 412 13 209 Cannons 184 | . 43 . . 141 Explosions 1249 | . 881 91 . 277 Melee . | . . . . . Ramming . | . . . . . Kinetic 825 | . 50 412 13 350 Thermal . | . . . . . Explosive 1249 | . 881 91 . 277 Electromagnetic . | . . . . . Impact . | . . . . . Slashing . | . . . . . Piercing . | . . . . . Highest Corruption 4 | . . 1 1 4 Average Corruption 1 | . . 1 1 1 Corruption Purged . | . . . . . Corruption Blocked . | . . . . . Effects 14 | . . 4 . 10 Message Errors 5 | . . 1 . 4 Matter Fused 4 | . . 1 . 3 Heat Flow Errors 2 | . . 1 . 1 Misfires 2 | . . 1 . 1 Weapon Failures 1 | . . . . 1 Overload Shots . | . . . . . Overflow Damage 9 | . 9 . . . Projectiles . | . . . . . Explosions 9 | . 9 . . . Melee . | . . . . . Knockbacks 2 | . . . . 2 Impact . | . . . . . Kinetic 2 | . . . . 2 Secondary . | . . . . . Self-Inflicted Damage 107 | . 59 15 . 33 Shots 6 | . 3 2 . 1 Rammed . | . . . . . Targets Rammed . | . . . . . Kicked . | . . . . . Crushed . | . . . . . Highest Temperature 216 | . 27 126 6 216 Average Temperature 25 | . 8 19 4 39 Received Heat Transfer 300 | . 57 141 21 81 Siege Activations . | . . . . . Robots Corrupted . | . . . . . Combat Hostiles . | . . . . . Parts Fried . | . . . . . Impact Corruptions . | . . . . . Robots Melted . | . . . . . Combat Hostiles . | . . . . . Parts Melted 1 | . . . . 1 Heat Transferred . | . . . . . Parts Sabotaged . | . . . . . Parts Stolen . | . . . . . Parts Stripped . | . . . . . Power Chain Reactions . | . . . . . Alert | -11 -10 -9 -9 -9 ------- Run | Yrd Mat Mat Min Exi Peak Influence 374 | . 374 248 33 . Initial 81 | . . 81 18 . Average 134 | . 173 167 26 . Maximum Alert Level 1 | . 1 1 . . Low Security (%) 68 | 100 63 51 100 . Level 1 31 | . 36 48 . . Level 2 . | . . . . . Level 3 . | . . . . . Level 4 . | . . . . . Level 5 . | . . . . . High Security . | . . . . . Max Security . | . . . . . Squads Dispatched 6 | . 2 4 . . Investigation 4 | . 2 2 . . Extermination . | . . . . . Reinforcement 2 | . . 2 . . Assault . | . . . . . Garrison . | . . . . . Intercept . | . . . . . Searches Triggered . | . . . . . Construction Impeded . | . . . . . Haulers Reinforced . | . . . . . Active Scanning Responses . | . . . . . Cargo Convoy Interrupts . | . . . . . Stealth | -11 -10 -9 -9 -9 --------- Run | Yrd Mat Mat Min Exi Distress Signals 4 | . 1 3 . . Communications Jammed . | . . . . . Distress Signals . | . . . . . Times Spotted 52 | . 18 13 12 9 Peak Tracking Total 16 | . 6 3 16 11 Tactical Retreats 3 | . . 2 1 . Traps | -11 -10 -9 -9 -9 ------- Run | Yrd Mat Mat Min Exi Traps Triggered 2 | . 2 . . . Indirectly . | . . . . . Trap Hack Attempts . | . . . . . Triggered . | . . . . . Disarmed . | . . . . . Reprogrammed . | . . . . . Reused . | . . . . . Traps Extracted . | . . . . . Installed . | . . . . . Triggered . | . . . . . Machines | -11 -10 -9 -9 -9 ---------- Run | Yrd Mat Mat Min Exi Machines Disabled 5 | . . . 1 4 Max in Single Turn 2 | . . . 1 2 Machines Repaired . | . . . . . Machines Dismantled . | . . . . . Machines Sabotaged . | . . . . . Overloaded Fab Kills . | . . . . . Hacking | -11 -10 -9 -9 -9 --------- Run | Yrd Mat Mat Min Exi Machines Accessed 8 | . 3 1 . 4 Terminals 3 | . 2 1 . . Fabricators . | . . . . . Repair Stations . | . . . . . Recycling Units 1 | . 1 . . . Scanalyzers . | . . . . . Garrison Access . | . . . . . Total Hacks 63 | . 11 3 . 49 Successful 54 | . 4 1 . 49 Failed 9 | . 7 2 . . Catastrophic . | . . . . . Database Lockouts . | . . . . . Manual . | . . . . . Terminals 10 | . 7 3 . . Fabricators . | . . . . . Repair Stations . | . . . . . Recycling Units 4 | . 4 . . . Scanalyzers . | . . . . . Garrison Access . | . . . . . Terminal Hacks 53 | . 3 1 . 49 Record 52 | . 3 . . 49 Unreport Threat 1 | . . 1 . . Fabricator Hacks . | . . . . . Repair Station Hacks . | . . . . . Recycling Unit Hacks 1 | . 1 . . . Report Inventory 1 | . 1 . . . Scanalyzer . | . . . . . Garrison Access Hacks . | . . . . . Unauthorized Hacks . | . . . . . Terminals . | . . . . . Fabricators . | . . . . . Repair Stations . | . . . . . Recycling Units . | . . . . . Scanalyzers . | . . . . . Garrison Access . | . . . . . Data Cores Recovered . | . . . . . Used . | . . . . . Hacking Detections 4 | . 3 1 . . Full Trace Events 3 | . 2 1 . . Feedback Events 1 | . . 1 . . Corruption 1 | . . 1 . . Feedback Blocked . | . . . . . Robot Schematics Acquired . | . . . . . Robots Built . | . . . . . Authchips . | . . . . . Time . | . . . . . Total Robot Build Rating . | . . . . . Part Schematics Acquired . | . . . . . Parts Built . | . . . . . Authchips . | . . . . . Time . | . . . . . Total Part Build Rating . | . . . . . Parts Repaired . | . . . . . Time . | . . . . . Parts Recycled . | . . . . . Recycled Matter . | . . . . . Retrieved Matter . | . . . . . Retrieved Components . | . . . . . Parts Scanalyzed . | . . . . . Part Schematics Acquired . | . . . . . Parts Damaged . | . . . . . Bothacking | -11 -10 -9 -9 -9 ------------ Run | Yrd Mat Mat Min Exi Used RIF Installer . | . . . . . Robots Hacked . | . . . . . Non-combat . | . . . . . Combat . | . . . . . Robot Hacks Applied . | . . . . . Relay Couplers Released . | . . . . . Fabnet Peak Effective % . | . . . . . Robots Rewired . | . . . . . Allies Hacked . | . . . . . Hacks Repelled . | . . . . . Allies | -11 -10 -9 -9 -9 -------- Run | Yrd Mat Mat Min Exi Total Allies . | . . . . . Largest Group . | . . . . . Highest-Rated Group . | . . . . . Highest-Rated Ally . | . . . . . Total Orders . | . . . . . Ally Attacks . | . . . . . Total Damage . | . . . . . Kills . | . . . . . Allies Corrupted . | . . . . . Allies Melted . | . . . . . Intel | -11 -10 -9 -9 -9 ------- Run | Yrd Mat Mat Min Exi Robot Analysis Total . | . . . . . Derelict Logs Recovered 1 | . . . 1 . Drone Launches . | . . . . . Drone Recoveries . | . . . . . Exploration | -11 -10 -9 -9 -9 ------------- Run | Yrd Mat Mat Min Exi Turns Passed 1848 | 128 576 410 169 565 Spaces Moved 1216 | 75 420 237 113 371 Core 24 | 15 . . . 9 Treads . | . . . . . Legs 1192 | 60 420 237 113 362 Wheels . | . . . . . Hover . | . . . . . Flight . | . . . . . Fastest Speed 50 | 50 120 120 120 120 Average Speed 123 | 148 120 120 120 125 Slowest Speed 200 | 190 120 120 120 200 Overloaded Moves . | . . . . . Propulsion Burnouts . | . . . . . Robots Hopped . | . . . . . Cave-ins Triggered . | . . . . . Exploration Rate (%) 39 | 5 65 28 37 63 Regions Visited 4 Branch Regions 2 Pre-discovered Areas 1 | . . . . 1 Known Exits Taken . | . . . . . Unknown Exits Taken 4 | 1 1 1 1 . Scrap Searched . | . . . . . Spaces Dug . | . . . . . Terrain Destroyed 107 | . 71 23 . 13 Melee . | . . . . . Projectile . | . . . . . AOE 107 | . 71 23 . 13 Terrain Rammed . | . . . . . Walls Destroyed . | . . . . . Machines Disabled . | . . . . . Actions | -11 -10 -9 -9 -9 --------- Run | Yrd Mat Mat Min Exi Total 1449 | 91 477 318 142 421 Wait 78 | . 9 42 26 1 Move 1212 | 74 419 236 112 371 Hop . | . . . . . Pick Up 21 | 8 8 4 1 . Fast Attach 7 | 3 3 1 . . Attach 17 | 3 2 3 1 8 Detach 3 | . 1 2 . . Swap 20 | . 9 6 . 5 Drop 15 | 3 10 2 . . Fire 76 | . 16 22 2 36 Melee . | . . . . . Ram . | . . . . . Kick . | . . . . . Crush . | . . . . . Escape Stasis . | . . . . . Rewire . | . . . . . Trap . | . . . . . Miscellaneous . | . . . . . Route ------- -11/Scrapyard -10/Materials -9/Materials (discovered 2 exits: [*Min] / [*Sto]) -9/Mines -9/Exiles History --------- Turn | Location | Event 22 | -11/Scrapyard | Discovered new exit (range 15) 129 | -11/Scrapyard | Entered Materials 319 | -10/Materials | Build established: Mutant 424 | -10/Materials | Discovered new exit (range 14) 705 | -10/Materials | Entered another Materials area 705 | -9/Materials | Evolved 2 slots: Propulsion x1, Utility x1 954 | -9/Materials | Discovered new exit (range 3) 955 | -9/Materials | Met 8R-AWN 1083 | -9/Materials | Discovered new exit (range 11) 1115 | -9/Materials | Entered Mines 1117 | -9/Mines | Followed 8R-AWN into the Mines 1133 | -9/Mines | Assembled infested the area 1138 | -9/Mines | Assisted by a Guerilla fighting off Assembled 1279 | -9/Mines | Discovered new exit (range 5) 1284 | -9/Mines | Entered Exiles 1314 | -9/Exiles | Welcomed by 8R-AWN 1342 | -9/Exiles | Met EX-HEX 1417 | -9/Exiles | Met EX-DEC 1474 | -9/Exiles | Learned location of Zion (-7) 1546 | -9/Exiles | Met EX-BIN 1672 | -9/Exiles | Attacked by the Exiles 1734 | -9/Exiles | Destroyed 7 combat bots 1745 | -9/Exiles | Core integrity fell below 50% 1824 | -9/Exiles | Lost 13 parts (1p4n3u5w) 1828 | -9/Exiles | Core integrity fell below 20% 1849 | -9/Exiles | Destroyed by 8R-AWN with 8R-AWN's Boregun Last Messages --------------- 01823_ Penetrated by HV Slug. 01823_ HV Slug penetrates Wall. 01827_ Penetrated by HV Slug. 01827_ HV Slug penetrates Wall. 01831_ Penetrated by HV Slug. 01831_ Aluminum Leg destroyed. 01831_ Penetrated by HV Slug. 01831_ Critical hit (Destroy). 01831_ Hvy. Assault Rifle destroyed. 01835_ Penetrated by HV Slug. 01835_ HV Slug penetrates Wall. 01835_ Penetrated by HV Slug. 01835_ HV Slug penetrates Wall. 01841_ Penetrated by HV Slug. 01841_ HV Slug penetrates Wall. 01845_ Penetrated by HV Slug. 01845_ HV Slug penetrates Wall. 01845_ Penetrated by HV Slug. 01845_ HV Slug penetrates Wall. 01849_ Penetrated by HV Slug. Map ----- +----------------------------------------------------+ | | | | | | | | | | | ?????????????????????????????????????????????????? | | ?????????????????????????????????????????????????? | | ?????????????????????????????????????????????????? | | ?????????????????????????????????????????????????? | | ?????????????????????????????????????????????????? | | ??????????????????????########???????????????????? | | ??????????????????????#X #???????????????????? | | ???????????????????????# #???????????????????? | | ???????????????????????# #???????????????????? | | ???????????????????????# #########???????????? | | ???????????????????????# ## """""#???????????? | | ???????????????????????# #" """#???????????? | | ???????????????????????# X""#???????????? | | ???????????????????????# ## ""#???????????? | | ???????????????######### g ;#""""""#???????????? | | ???????????????#""""""## #########???????????? | | ???????????????#"""" ## #???????????????????? | | ???????????????#""X" #???????????????????? | | ???????????????#" #???????????????????? | | ???????????????#" #; #???????????????????? | | ???????????????#""""""#; @ #??######???????????? | | ???????????????##"###### #?#"""""""??????????? | | ??????????????? "#????# #?#" " """###???????? | | ??????????????""" #????# #?# " """"" #???????? | | ?????????????#""" #???## ### " "" " #???????? | | ???????????????"" #???#" " "#????????? | | ????????????????###???# #?????????? | | ??????????????????????# "#?????????? | | ??????????????????????#" #?????????? | | ???????########???????#" "" #?????????? | | ???????# """#???????#" "##????????? | | ???????#"" """#???????## % """""???????? | | ???????#"" #????????# """######????? | | ???????#"" #????????#" % """"" #????? | | ???????#"" "#????????#" # "???????? | | ???????# ""#????????#" """""""#?????????? | | ???????#"" ""#???????## ########?????????? | | ???????### ###??????##"" #????????????????? | | ###????### ###?######"" % #????????????????? | | """#####X# #"###""""""" ##????????????????? | | """""" " "" #???###########???? | | "" """ " #####"""""""""##??? | | " " " """ """"##?? | | "" " #?? | | " """#?? | +----------------------------------------------------+ Best States ------------- Heat Dissipation 38 Energy Generation 10 Energy Capacity 250 Matter Stores 300 Matter Capacity 300 Sight Range 16 Robot Scan Range 14 Terrain Scan Density 10 ECM Strength 1 Armor Coverage 300 Evasion (%) 55 Item Schematics ----------------- None Robot Schematics ------------------ None Fabricated ------------ Nothing Alien Tech Used ----------------- None Achievements -------------- I Survived The Infestation Slippery One Challenges ------------ None Game ------ Seed DroneGatlingInitializer Manual? 0 Play Time 00:35:50 Cumulative 4.6 hours Start 2024.08.13 @ 21:17:18 End 2024.08.13 @ 21:54:07 Sessions 1 Manual Loads 0 Difficulty Rogue Special Mode None Game No. 9 Rogue 9 Adventurer 0 Explorer 0 Win Type - Total 0 Types 0/0/0/0/0/0/0/0/0 Lore% 6 Gallery% 6 Achievement% 9 Wizard Run 0 Options --------- Layout 2 ASCII 0 Keyboard 0 Movement Mouse Keybinds 0 Fullscreen 2 Font 20/SmallcapsGlow Map View 64x51 Zoom Use 0% Tactical HUD 1 Map Filters NONE Filters NONE Steam 1 RUN: e0f41b08-5ac3-49cc-839d-bff9552c90ab